{"text_format":"3","workbook":"xlsx","n_sheets":2,"sheets":["ÎNCEPUT","BUGET PERSONAL LUNAR"],"read":"whole","date_system":"1900"}

{"sheet":"ÎNCEPUT","index":0,"n_rows":7,"n_cols":2,"rows_kept":7}
[null,"DESPRE ACEST ȘABLON"]
[null,"Utilizați această foaie de lucru pentru Buget personal lunar pentru a vă urmări venitul lunar proiectat și efectiv, precum și costul proiectat și efectiv."]
[null,"Introduceți cheltuielile pentru categorii diferite în tabelele corespunzătoare."]
[null,"Soldul proiectat, Soldul efectiv și Diferența se calculează automat."]
[null,"Notă: "]
[null,"Instrucțiuni suplimentare sunt furnizate în coloana A din foaia de lucru BUGET PERSONAL LUNAR Acest text a fost ascuns intenționat. Pentru a elimina textul, selectați coloana A, apoi ȘTERGERE. Pentru a reafișa textul, selectați coloana A, apoi schimbați culoarea de font."]
[null,"Pentru a afla mai multe despre tabelele din foaia de lucru, apăsați SHIFT, apoi F10 într-un tabel, selectați opțiunea TABEL, apoi TEXT ALTERNATIV."]

{"sheet":"BUGET PERSONAL LUNAR","index":1,"n_rows":64,"n_cols":10,"rows_kept":64,"merged":[[3,1,5,1],[3,2,3,3],[3,6,4,8],[3,9,4,9],[4,2,4,3],[5,2,5,3],[5,6,6,8],[5,9,6,9],[7,1,9,1],[7,2,7,3],[7,6,8,8],[7,9,8,9],[8,2,8,3],[9,2,9,3],[22,6,22,9],[23,1,23,4],[31,6,31,9],[33,1,33,4],[38,6,38,9],[40,1,40,4],[44,6,44,9],[46,1,46,4],[50,6,50,9],[54,1,54,4],[57,6,57,9],[58,6,59,8],[58,9,59,9],[60,6,61,8],[60,9,61,9],[62,6,63,8],[62,9,63,9],[64,1,64,4]]}
["Creați un Buget personal lunar în această foaie de lucru. Găsiți instrucțiuni utile despre cum să utilizați această foaie de lucru în celulele din această coloană. Apăsați săgeata în jos pentru a începe."]
["Titlul acestei foi de lucru se află în celula din dreapta. Următoarele instrucțiuni se află în celula A4.","BUGET PERSONAL LUNAR"]
[]
["Eticheta Venit lunar proiectat se află în celula din dreapta. Introduceți Venit 1 în celula E4 și Venit suplimentar în E5 pentru a calcula Total venit lunar în E6. Următoarele instrucțiuni se află în celula A6.","VENIT LUNAR PROIECTAT","Venit 1",null,{"v":4300,"d":"4,300.00 lei"},null,"SOLDUL PROIECTAT \n(Venit proiectat minus cheltuieli)",null,null,{"$f":"E6-J59","v":{"v":3405,"d":"3,405.00 lei"}}]
[null,null,"Venit suplimentar",null,{"v":300,"d":"300.00 lei"}]
["Soldul proiectat se calculează automat în celula J4, Soldul efectiv în J6 și Diferența în J8. Următoarele instrucțiuni se află în celula A8.",null,"Total venit lunar",null,{"$f":"SUM(E4:E5)","v":{"v":4600,"d":"4,600.00 lei"}},null,"SOLDUL EFECTIV \n(Venit efectiv minus cheltuielile)",null,null,{"$f":"E10-J61","v":{"v":3064,"d":"3,064.00 lei"}}]
[]
["Eticheta Venit lunar efectiv se află în celula din dreapta. Introduceți Venit 1 în celula E8 și Venit suplimentar în E9 pentru a calcula Total venit lunar în E10. Următoarele instrucțiuni se află în celula A12.","VENIT LUNAR EFECTIV","Venit 1",null,{"v":4000,"d":"4,000.00 lei"},null,"DIFERENȚĂ \n(Efectiv minus proiectat)",null,null,{"$f":"J6-J4","v":{"v":-341,"d":"341.00 lei"}}]
[null,null,"Venit suplimentar",null,{"v":300,"d":"300.00 lei"}]
[null,null,"Total venit lunar",null,{"$f":"SUM(E8:E9)","v":{"v":4300,"d":"4,300.00 lei"}}]
[]
["Introduceți detaliile în tabelul Locuință începând din celula de la dreapta, iar tabelul Distracție începând cu celula G12. Următoarele instrucțiuni se află în celula A25.","LOCUINȚĂ","Costul proiectat","Costul efectiv","Diferență",null,"DISTRACȚIE","Costul proiectat","Costul efectiv","Diferență"]
[null,"Credit ipotecar sau chirie",{"v":1000,"d":"1,000.00 lei"},{"v":1000,"d":"1,000.00 lei"},{"$f":"Locuință[[#This Row],[Costul proiectat]]-Locuință[[#This Row],[Costul efectiv]]","v":{"v":0,"d":"0.00 lei"}},null,"Video/DVD",null,null,{"$f":"Distracție[[#This Row],[Costul proiectat]]-Distracție[[#This Row],[Costul efectiv]]","v":{"v":0,"d":"0.00 lei"}}]
[null,"Telefon",{"v":54,"d":"54.00 lei"},{"v":100,"d":"100.00 lei"},{"$f":"Locuință[[#This Row],[Costul proiectat]]-Locuință[[#This Row],[Costul efectiv]]","v":{"v":-46,"d":"-46.00 lei"}},null,"CD-uri",null,null,{"$f":"Distracție[[#This Row],[Costul proiectat]]-Distracție[[#This Row],[Costul efectiv]]","v":{"v":0,"d":"0.00 lei"}}]
[null,"Electricitate",{"v":44,"d":"44.00 lei"},{"v":56,"d":"56.00 lei"},{"$f":"Locuință[[#This Row],[Costul proiectat]]-Locuință[[#This Row],[Costul efectiv]]","v":{"v":-12,"d":"-12.00 lei"}},null,"Filme",null,null,{"$f":"Distracție[[#This Row],[Costul proiectat]]-Distracție[[#This Row],[Costul efectiv]]","v":{"v":0,"d":"0.00 lei"}}]
[null,"Gaze",{"v":22,"d":"22.00 lei"},{"v":28,"d":"28.00 lei"},{"$f":"Locuință[[#This Row],[Costul proiectat]]-Locuință[[#This Row],[Costul efectiv]]","v":{"v":-6,"d":"-6.00 lei"}},null,"Concerte",null,null,{"$f":"Distracție[[#This Row],[Costul proiectat]]-Distracție[[#This Row],[Costul efectiv]]","v":{"v":0,"d":"0.00 lei"}}]
[null,"Apă și canalizare",{"v":8,"d":"8.00 lei"},{"v":8,"d":"8.00 lei"},{"$f":"Locuință[[#This Row],[Costul proiectat]]-Locuință[[#This Row],[Costul efectiv]]","v":{"v":0,"d":"0.00 lei"}},null,"Evenimente sportive",null,null,{"$f":"Distracție[[#This Row],[Costul proiectat]]-Distracție[[#This Row],[Costul efectiv]]","v":{"v":0,"d":"0.00 lei"}}]
[null,"Cablu",{"v":34,"d":"34.00 lei"},{"v":34,"d":"34.00 lei"},{"$f":"Locuință[[#This Row],[Costul proiectat]]-Locuință[[#This Row],[Costul efectiv]]","v":{"v":0,"d":"0.00 lei"}},null,"Teatru live",null,null,{"$f":"Distracție[[#This Row],[Costul proiectat]]-Distracție[[#This Row],[Costul efectiv]]","v":{"v":0,"d":"0.00 lei"}}]
[null,"Eliminare reziduri",{"v":10,"d":"10.00 lei"},{"v":10,"d":"10.00 lei"},{"$f":"Locuință[[#This Row],[Costul proiectat]]-Locuință[[#This Row],[Costul efectiv]]","v":{"v":0,"d":"0.00 lei"}},null,"Altele",null,null,{"$f":"Distracție[[#This Row],[Costul proiectat]]-Distracție[[#This Row],[Costul efectiv]]","v":{"v":0,"d":"0.00 lei"}}]
[null,"Întreținere sau reparații",{"v":23,"d":"23.00 lei"},{"v":0,"d":"0.00 lei"},{"$f":"Locuință[[#This Row],[Costul proiectat]]-Locuință[[#This Row],[Costul efectiv]]","v":{"v":23,"d":"23.00 lei"}},null,"Altele",null,null,{"$f":"Distracție[[#This Row],[Costul proiectat]]-Distracție[[#This Row],[Costul efectiv]]","v":{"v":0,"d":"0.00 lei"}}]
[null,"Consumabile",{"v":0,"d":"0.00 lei"},{"v":0,"d":"0.00 lei"},{"$f":"Locuință[[#This Row],[Costul proiectat]]-Locuință[[#This Row],[Costul efectiv]]","v":{"v":0,"d":"0.00 lei"}},null,"Altele",null,null,{"$f":"Distracție[[#This Row],[Costul proiectat]]-Distracție[[#This Row],[Costul efectiv]]","v":{"v":0,"d":"0.00 lei"}}]
[null,"Altele",{"v":0,"d":"0.00 lei"},{"v":0,"d":"0.00 lei"},{"$f":"Locuință[[#This Row],[Costul proiectat]]-Locuință[[#This Row],[Costul efectiv]]","v":{"v":0,"d":"0.00 lei"}},null,"Subtotal",null,null,{"$f":"SUBTOTAL(109,Distracție[Diferență])","v":{"v":0,"d":"0.00 lei"}}]
[null,"Subtotal",null,null,{"$f":"SUBTOTAL(109,Locuință[Diferență])","v":{"v":-41,"d":"-41.00 lei"}}]
[{"$nulls":6},"ÎMPRUMUTURI","Costul proiectat","Costul efectiv","Diferență"]
["Introduceți detaliile în tabelul Transport începând din celula de la dreapta, iar tabelul Împrumuturi începând cu celula G24. Următoarele instrucțiuni se află în celula A35.","TRANSPORT","Costul proiectat","Costul efectiv","Diferență",null,"Personal",null,null,{"$f":"Împrumuturi[[#This Row],[Costul proiectat]]-Împrumuturi[[#This Row],[Costul efectiv]]","v":{"v":0,"d":"0.00 lei"}}]
[null,"Plată vehicul",null,null,{"$f":"Transport[[#This Row],[Costul proiectat]]-Transport[[#This Row],[Costul efectiv]]","v":{"v":0,"d":"0.00 lei"}},null,"Student",null,null,{"$f":"Împrumuturi[[#This Row],[Costul proiectat]]-Împrumuturi[[#This Row],[Costul efectiv]]","v":{"v":0,"d":"0.00 lei"}}]
[null,"Tarif autobuz/taxi",null,null,{"$f":"Transport[[#This Row],[Costul proiectat]]-Transport[[#This Row],[Costul efectiv]]","v":{"v":0,"d":"0.00 lei"}},null,"Card de credit",null,null,{"$f":"Împrumuturi[[#This Row],[Costul proiectat]]-Împrumuturi[[#This Row],[Costul efectiv]]","v":{"v":0,"d":"0.00 lei"}}]
[null,"Asigurare",null,null,{"$f":"Transport[[#This Row],[Costul proiectat]]-Transport[[#This Row],[Costul efectiv]]","v":{"v":0,"d":"0.00 lei"}},null,"Card de credit",null,null,{"$f":"Împrumuturi[[#This Row],[Costul proiectat]]-Împrumuturi[[#This Row],[Costul efectiv]]","v":{"v":0,"d":"0.00 lei"}}]
[null,"Licențiere",null,null,{"$f":"Transport[[#This Row],[Costul proiectat]]-Transport[[#This Row],[Costul efectiv]]","v":{"v":0,"d":"0.00 lei"}},null,"Card de credit",null,null,{"$f":"Împrumuturi[[#This Row],[Costul proiectat]]-Împrumuturi[[#This Row],[Costul efectiv]]","v":{"v":0,"d":"0.00 lei"}}]
[null,"Benzină",null,null,{"$f":"Transport[[#This Row],[Costul proiectat]]-Transport[[#This Row],[Costul efectiv]]","v":{"v":0,"d":"0.00 lei"}},null,"Altele",null,null,{"$f":"Împrumuturi[[#This Row],[Costul proiectat]]-Împrumuturi[[#This Row],[Costul efectiv]]","v":{"v":0,"d":"0.00 lei"}}]
[null,"Întreținere",null,null,{"$f":"Transport[[#This Row],[Costul proiectat]]-Transport[[#This Row],[Costul efectiv]]","v":{"v":0,"d":"0.00 lei"}},null,"Subtotal",null,null,{"$f":"SUBTOTAL(109,Împrumuturi[Diferență])","v":{"v":0,"d":"0.00 lei"}}]
[null,"Altele",null,null,{"$f":"Transport[[#This Row],[Costul proiectat]]-Transport[[#This Row],[Costul efectiv]]","v":{"v":0,"d":"0.00 lei"}}]
[null,"Subtotal",null,null,{"$f":"SUBTOTAL(109,Transport[Diferență])","v":{"v":0,"d":"0.00 lei"}},null,"TAXE","Costul proiectat","Costul efectiv","Diferență"]
[{"$nulls":6},"Regional",null,null,{"$f":"Taxe[[#This Row],[Costul proiectat]]-Taxe[[#This Row],[Costul efectiv]]","v":{"v":0,"d":"0.00 lei"}}]
["Introduceți detaliile în tabelul Asigurare începând din celula de la dreapta, iar tabelul Taxe începând cu celula G33. Următoarele instrucțiuni se află în celula A42.","ASIGURARE","Costul proiectat","Costul efectiv","Diferență",null,"Județ",null,null,{"$f":"Taxe[[#This Row],[Costul proiectat]]-Taxe[[#This Row],[Costul efectiv]]","v":{"v":0,"d":"0.00 lei"}}]
[null,"Pornire",null,null,{"$f":"Asigurare[[#This Row],[Costul proiectat]]-Asigurare[[#This Row],[Costul efectiv]]","v":{"v":0,"d":"0.00 lei"}},null,"Local",null,null,{"$f":"Taxe[[#This Row],[Costul proiectat]]-Taxe[[#This Row],[Costul efectiv]]","v":{"v":0,"d":"0.00 lei"}}]
[null,"Stare",null,null,{"$f":"Asigurare[[#This Row],[Costul proiectat]]-Asigurare[[#This Row],[Costul efectiv]]","v":{"v":0,"d":"0.00 lei"}},null,"Altele",null,null,{"$f":"Taxe[[#This Row],[Costul proiectat]]-Taxe[[#This Row],[Costul efectiv]]","v":{"v":0,"d":"0.00 lei"}}]
[null,"Viață",null,null,{"$f":"Asigurare[[#This Row],[Costul proiectat]]-Asigurare[[#This Row],[Costul efectiv]]","v":{"v":0,"d":"0.00 lei"}},null,"Subtotal",null,null,{"$f":"SUBTOTAL(109,Taxe[Diferență])","v":{"v":0,"d":"0.00 lei"}}]
[null,"Altele",null,null,{"$f":"Asigurare[[#This Row],[Costul proiectat]]-Asigurare[[#This Row],[Costul efectiv]]","v":{"v":0,"d":"0.00 lei"}}]
[null,"Subtotal",null,null,{"$f":"SUBTOTAL(109,Asigurare[Diferență])","v":{"v":0,"d":"0.00 lei"}},null,"ECONOMII SAU INVESTIȚII","Costul proiectat","Costul efectiv","Diferență"]
[{"$nulls":6},"Cont pensionare",null,null,{"$f":"Economii[[#This Row],[Costul proiectat]]-Economii[[#This Row],[Costul efectiv]]","v":{"v":0,"d":"0.00 lei"}}]
["Introduceți detaliile în tabelul Alimente începând din celula de la dreapta, iar tabelul Economii începând cu celula G40. Următoarele instrucțiuni se află în celula A48.","ALIMENT","Costul proiectat","Costul efectiv","Diferență",null,"Cont de investiții",null,null,{"$f":"Economii[[#This Row],[Costul proiectat]]-Economii[[#This Row],[Costul efectiv]]","v":{"v":0,"d":"0.00 lei"}}]
[null,"Articole de băcănie",null,null,{"$f":"Alimente[[#This Row],[Costul proiectat]]-Alimente[[#This Row],[Costul efectiv]]","v":{"v":0,"d":"0.00 lei"}},null,"Altele",null,null,{"$f":"Economii[[#This Row],[Costul proiectat]]-Economii[[#This Row],[Costul efectiv]]","v":{"v":0,"d":"0.00 lei"}}]
[null,"Masă în oraș",null,null,{"$f":"Alimente[[#This Row],[Costul proiectat]]-Alimente[[#This Row],[Costul efectiv]]","v":{"v":0,"d":"0.00 lei"}},null,"Subtotal",null,null,{"$f":"SUBTOTAL(109,Economii[Diferență])","v":{"v":0,"d":"0.00 lei"}}]
[null,"Altele",null,null,{"$f":"Alimente[[#This Row],[Costul proiectat]]-Alimente[[#This Row],[Costul efectiv]]","v":{"v":0,"d":"0.00 lei"}}]
[null,"Subtotal",null,null,{"$f":"SUBTOTAL(109,Alimente[Diferență])","v":{"v":0,"d":"0.00 lei"}},null,"CADOURI ȘI DONAȚII","Costul proiectat","Costul efectiv","Diferență"]
[{"$nulls":6},"Caritate 1",null,null,{"$f":"Cadouri[[#This Row],[Costul proiectat]]-Cadouri[[#This Row],[Costul efectiv]]","v":{"v":0,"d":"0.00 lei"}}]
["Introduceți detaliile în tabelul Animale_de_casă începând din celula de la dreapta, iar tabelul Cadouri începând cu celula G46. Următoarele instrucțiuni se află în celula A56.","ANIMALE DE CASĂ","Costul proiectat","Costul efectiv","Diferență",null,"Caritate 2",null,null,{"$f":"Cadouri[[#This Row],[Costul proiectat]]-Cadouri[[#This Row],[Costul efectiv]]","v":{"v":0,"d":"0.00 lei"}}]
[null,"Alimente",null,null,{"$f":"Animale_de_casă[[#This Row],[Costul proiectat]]-Animale_de_casă[[#This Row],[Costul efectiv]]","v":{"v":0,"d":"0.00 lei"}},null,"Caritate 3",null,null,{"$f":"Cadouri[[#This Row],[Costul proiectat]]-Cadouri[[#This Row],[Costul efectiv]]","v":{"v":0,"d":"0.00 lei"}}]
[null,"Medic",null,null,{"$f":"Animale_de_casă[[#This Row],[Costul proiectat]]-Animale_de_casă[[#This Row],[Costul efectiv]]","v":{"v":0,"d":"0.00 lei"}},null,"Subtotal",null,null,{"$f":"SUBTOTAL(109,Cadouri[Diferență])","v":{"v":0,"d":"0.00 lei"}}]
[null,"Îngrijire",null,null,{"$f":"Animale_de_casă[[#This Row],[Costul proiectat]]-Animale_de_casă[[#This Row],[Costul efectiv]]","v":{"v":0,"d":"0.00 lei"}}]
[null,"Jucării",null,null,{"$f":"Animale_de_casă[[#This Row],[Costul proiectat]]-Animale_de_casă[[#This Row],[Costul efectiv]]","v":{"v":0,"d":"0.00 lei"}},null,"JURIDIC","Costul proiectat","Costul efectiv","Diferență"]
[null,"Altele",null,null,{"$f":"Animale_de_casă[[#This Row],[Costul proiectat]]-Animale_de_casă[[#This Row],[Costul efectiv]]","v":{"v":0,"d":"0.00 lei"}},null,"Avocat",null,null,{"$f":"Juridic[[#This Row],[Costul proiectat]]-Juridic[[#This Row],[Costul efectiv]]","v":{"v":0,"d":"0.00 lei"}}]
[null,"Subtotal",null,null,{"$f":"SUBTOTAL(109,Animale_de_casă[Diferență])","v":{"v":0,"d":"0.00 lei"}},null,"Pensie",null,null,{"$f":"Juridic[[#This Row],[Costul proiectat]]-Juridic[[#This Row],[Costul efectiv]]","v":{"v":0,"d":"0.00 lei"}}]
[{"$nulls":6},"Plăți pentru sechestru sau judecată",null,null,{"$f":"Juridic[[#This Row],[Costul proiectat]]-Juridic[[#This Row],[Costul efectiv]]","v":{"v":0,"d":"0.00 lei"}}]
["Introduceți detaliile în tabelul Îngrijire personală începând din celula de la dreapta, iar tabelul Juridic începând cu celula G52. Următoarele instrucțiuni se află în celula A59.","ÎNGRIJIRE PERSONALĂ","Costul proiectat","Costul efectiv","Diferență",null,"Altele",null,null,{"$f":"Juridic[[#This Row],[Costul proiectat]]-Juridic[[#This Row],[Costul efectiv]]","v":{"v":0,"d":"0.00 lei"}}]
[null,"Medicale",null,null,{"$f":"ÎngrijirePersonală[[#This Row],[Costul proiectat]]-ÎngrijirePersonală[[#This Row],[Costul efectiv]]","v":{"v":0,"d":"0.00 lei"}},null,"Subtotal",null,null,{"$f":"SUBTOTAL(109,Juridic[Diferență])","v":{"v":0,"d":"0.00 lei"}}]
[null,"Păr/unghii",null,null,{"$f":"ÎngrijirePersonală[[#This Row],[Costul proiectat]]-ÎngrijirePersonală[[#This Row],[Costul efectiv]]","v":{"v":0,"d":"0.00 lei"}}]
["Costul proiectat total se calculează automat în celula J59, Costul efectiv total în J61, iar Diferența totală în J63.","Îmbrăcăminte",null,null,{"$f":"ÎngrijirePersonală[[#This Row],[Costul proiectat]]-ÎngrijirePersonală[[#This Row],[Costul efectiv]]","v":{"v":0,"d":"0.00 lei"}},null,"COSTUL TOTAL PROIECTAT",null,null,{"$f":"SUBTOTAL(109,Locuință[Costul proiectat],Transport[Costul proiectat],Asigurare[Costul proiectat],Alimente[Costul proiectat],Animale_de_casă[Costul proiectat],ÎngrijirePersonală[Costul proiectat],Distracție[Costul proiectat],Împrumuturi[Costul proiectat],Taxe[Costul proiectat],Economii[Costul proiectat],Cadouri[Costul proiectat],Juridic[Costul proiectat])","v":{"v":1195,"d":"1,195.00 lei"}}]
[null,"Curățătorie",null,null,{"$f":"ÎngrijirePersonală[[#This Row],[Costul proiectat]]-ÎngrijirePersonală[[#This Row],[Costul efectiv]]","v":{"v":0,"d":"0.00 lei"}}]
[null,"Club de sănătate",null,null,{"$f":"ÎngrijirePersonală[[#This Row],[Costul proiectat]]-ÎngrijirePersonală[[#This Row],[Costul efectiv]]","v":{"v":0,"d":"0.00 lei"}},null,"COSTUL TOTAL EFECTIV",null,null,{"$f":"SUBTOTAL(109,Locuință[Costul efectiv],Transport[Costul efectiv],Asigurare[Costul efectiv],Alimente[Costul efectiv],Animale_de_casă[Costul efectiv],ÎngrijirePersonală[Costul efectiv],Distracție[Costul efectiv],Împrumuturi[Costul efectiv],Taxe[Costul efectiv],Economii[Costul efectiv],Cadouri[Costul efectiv],Juridic[Costul efectiv])","v":{"v":1236,"d":"1,236.00 lei"}}]
[null,"Datoriile sau taxele către organizație",null,null,{"$f":"ÎngrijirePersonală[[#This Row],[Costul proiectat]]-ÎngrijirePersonală[[#This Row],[Costul efectiv]]","v":{"v":0,"d":"0.00 lei"}}]
[null,"Altele",null,null,{"$f":"ÎngrijirePersonală[[#This Row],[Costul proiectat]]-ÎngrijirePersonală[[#This Row],[Costul efectiv]]","v":{"v":0,"d":"0.00 lei"}},null,"DIFERENȚĂ TOTALURI",null,null,{"$f":"J59-J61","v":{"v":-41,"d":"41.00 lei"}}]
[null,"Subtotal",null,null,{"$f":"SUBTOTAL(109,ÎngrijirePersonală[Diferență])","v":{"v":0,"d":"0.00 lei"}}]